bitfinex/quotes_BTCUSD_20251016
["timestamp","ask_amount","ask_price","bid_price","bid_amount"]
[1760641033280,1.56590719,108720.0,108710.0,0.00018988]
[1760641033456,1.5411706,108720.0,108710.0,0.00018988]
[1760641035494,1.53290814,108720.0,108710.0,0.00018988]
[1760641037907,0.76542429,108720.0,108710.0,0.00018988]
[1760641038071,1.53290814,108720.0,108710.0,0.00018988]
[1760641038693,1.49672586,108720.0,108710.0,0.00018988]
[1760641038890,1.53290814,108720.0,108710.0,0.00018988]
[1760641039307,1.59066226,108720.0,108710.0,0.00018988]
[1760641039510,0.82317841,108720.0,108710.0,0.00018988]
[1760641039655,1.59066226,108720.0,108710.0,0.00018988]
[1760641039854,1.54116767,108720.0,108710.0,0.00018988]
[1760641040079,1.59066226,108720.0,108710.0,0.00018988]
[1760641042206,1.55447998,108720.0,108710.0,0.00018988]
[1760641042792,1.59066226,108720.0,108710.0,0.00018988]
[1760641045471,0.78699613,108720.0,108710.0,0.18416559]
[1760641045675,0.34983422,108720.0,108710.0,0.00018988]
[1760641046187,1.11731807,108720.0,108710.0,0.00018988]
[1760641048177,0.34983422,108720.0,108710.0,0.18416559]
[1760641048378,0.32506591,108720.0,108710.0,0.00018988]
[1760641048831,0.34983422,108720.0,108710.0,0.00018988]
[1760641049748,0.34983422,108720.0,108710.0,0.18416559]
[1760641049952,0.34983422,108720.0,108710.0,0.00018988]
[1760641050316,0.32506591,108720.0,108710.0,0.18416559]
[1760641050883,0.14110712,108720.0,108710.0,0.18416559]
[1760641051022,0.12134726,108720.0,108710.0,0.18416559]
[1760641051204,0.12134726,108720.0,108710.0,0.27385571]
[1760641052458,0.30530605,108720.0,108710.0,0.18416559]
[1760641052682,1.0727899,108720.0,108710.0,0.00118988]
[1760641052863,0.32506591,108720.0,108710.0,0.18516559]
[1760641053064,0.30530605,108720.0,108710.0,0.18516559]
[1760641053276,0.30530605,108720.0,108710.0,0.00118988]
[1760641054178,0.30530605,108720.0,108710.0,0.00018988]
[1760641056289,0.30530605,108720.0,108710.0,0.18416559]
[1760641056895,0.30530605,108720.0,108710.0,0.00018988]
[1760641058878,0.30530605,108720.0,108710.0,0.18416559]
[1760641059545,0.30530605,108720.0,108710.0,0.00018988]
[1760641060304,0.30530605,108720.0,108710.0,0.18416559]
[1760641061137,0.12615733,108720.0,108710.0,0.18416559]
[1760641061310,0.31011612,108720.0,108710.0,0.18416559]
[1760641061550,0.12615733,108720.0,108710.0,0.18416559]
[1760641062212,0.12615733,108720.0,108710.0,0.27385571]
[1760641062418,0.12615733,108720.0,108710.0,0.36733571]
[1760641062837,0.12134726,108720.0,108710.0,0.36733571]
[1760641063475,0.12134726,108720.0,108710.0,0.36833571]
[1760641070734,0.00481007,108730.0,108720.0,0.52395879]
[1760641071069,0.00481007,108730.0,108720.0,0.61364891]
[1760641071899,0.00481007,108730.0,108720.0,1.10943628]
[1760641072117,0.01839673,108750.0,108740.0,0.18392495]
[1760641072267,0.06839673,108750.0,108740.0,0.36705507]
[1760641072458,0.05,108750.0,108740.0,0.36705507]
[1760641072662,0.00481007,108760.0,108750.0,0.18390804]
[1760641072862,0.09481007,108760.0,108750.0,0.27359816]
[1760641073551,0.10613075,108760.0,108720.0,0.19315672]
[1760641073759,0.49578737,108730.0,108720.0,0.19315672]
[1760641073981,0.49578737,108740.0,108720.0,0.36723754]
[1760641074193,0.49578737,108740.0,108730.0,0.01839418]
[1760641074194,0.01,108740.0,108730.0,0.01839418]
[1760641074400,0.19392495,108740.0,108730.0,0.20233605]
[1760641074537,0.68971232,108740.0,108730.0,0.18394187]
[1760641075715,0.50578737,108740.0,108730.0,0.18394187]
[1760641076144,0.68971232,108740.0,108730.0,0.18394187]
[1760641077789,0.50578737,108740.0,108730.0,0.18394187]
[1760641078196,0.67969598,108750.0,108740.0,0.18392495]
[1760641078395,0.79969598,108750.0,108730.0,0.27363199]
[1760641079204,0.79969598,108750.0,108740.0,0.18392495]
[1760641081133,0.18392495,108740.0,108730.0,0.27363199]
[1760641081333,0.18392495,108740.0,108720.0,0.00014988]
[1760641081334,0.18394187,108730.0,108720.0,0.00014988]
[1760641081556,0.80972924,108730.0,108720.0,0.00014988]
[1760641081964,0.80972924,108730.0,108720.0,0.18410867]
[1760641082164,0.62578737,108730.0,108720.0,0.18410867]
[1760641082312,0.80972924,108730.0,108720.0,0.18410867]
[1760641082866,0.62578737,108730.0,108720.0,0.18410867]
[1760641083262,0.80972924,108730.0,108720.0,0.18410867]
[1760641083467,0.62578737,108730.0,108720.0,0.18410867]
[1760641083663,0.80972924,108730.0,108720.0,0.18410867]
[1760641084534,0.13,108730.0,108720.0,0.18410867]
[1760641084773,1.03952188,108750.0,108730.0,0.18392545]
[1760641084973,0.81952102,108750.0,108740.0,0.18392495]
[1760641085179,0.63560752,108750.0,108740.0,0.18392495]
[1760641085410,0.79969541,108750.0,108740.0,0.18392495]
[1760641085783,0.30390804,108750.0,108730.0,0.27736545]
[1760641086003,0.49578737,108740.0,108730.0,0.27736545]
[1760641086205,0.62578737,108740.0,108730.0,0.27736545]
[1760641086547,0.62578737,108740.0,108730.0,0.18392545]
[1760641088408,0.13,108740.0,108730.0,0.27361557]
[1760641088926,0.7043279,108760.0,108740.0,0.18391199]
[1760641089129,0.49578737,108750.0,108740.0,0.18391199]
[1760641089357,0.14,108750.0,108740.0,0.18391199]
[1760641089560,0.14,108750.0,108740.0,0.27360211]
[1760641089760,0.63578737,108750.0,108740.0,0.27360211]
[1760641090161,0.81969541,108750.0,108740.0,0.27360211]
[1760641090326,0.63578737,108750.0,108740.0,0.27360211]
[1760641090511,0.14,108750.0,108740.0,0.27360211]
[1760641090711,0.63578737,108750.0,108740.0,0.27360211]
[1760641091732,0.14,108750.0,108740.0,0.27360211]
[1760641095453,0.14,108750.0,108740.0,0.27460211]
[1760641095673,0.00481007,108760.0,108750.0,0.18390804]
[1760641095889,0.11481007,108760.0,108750.0,0.36699816]
[1760641096340,0.00481007,108760.0,108750.0,0.36699816]
[1760641097870,0.00481007,108760.0,108750.0,0.36799816]
[1760641098854,0.61136739,108780.0,108770.0,0.18387423]
[1760641099041,0.75136739,108780.0,108770.0,0.18387423]
[1760641100035,0.75186687,108780.0,108770.0,0.18387423]
[1760641100586,0.82014435,108780.0,108770.0,0.18387423]
[1760641101325,0.82014435,108780.0,108760.0,0.18387593]
[1760641101552,0.6796616,108770.0,108760.0,0.18388971]
[1760641101760,0.7996616,108770.0,108750.0,0.36698998]
[1760641101968,0.49578737,108760.0,108750.0,0.36698998]
[1760641102172,0.67966169,108770.0,108750.0,0.36698998]
[1760641102386,0.79966169,108770.0,108760.0,0.18389113]
[1760641102852,0.79966169,108770.0,108750.0,0.36698998]
[1760641103097,0.49578737,108760.0,108750.0,0.36698998]
[1760641103292,0.51578737,108760.0,108750.0,0.36699816]
[1760641103507,0.6996785,108760.0,108740.0,0.1930923]
[1760641103706,0.6996785,108760.0,108750.0,0.18390804]
[1760641104396,0.49578737,108760.0,108750.0,0.18390804]
[1760641104582,0.7896785,108760.0,108750.0,0.18390804]
[1760641105123,0.60578737,108760.0,108750.0,0.18390804]
[1760641105335,0.7896785,108760.0,108750.0,0.18390804]
[1760641105834,0.7896785,108760.0,108750.0,0.18394804]
[1760641106291,0.7896785,108760.0,108750.0,4e-05]
[1760641106977,0.29389113,108760.0,108750.0,0.18394804]
[1760641107182,0.7896785,108760.0,108750.0,0.18394804]
[1760641107600,0.11,108760.0,108750.0,0.18394804]
[1760641107811,0.60578737,108760.0,108750.0,0.18394804]
[1760641108022,0.11,108760.0,108750.0,0.18394804]
[1760641108238,0.6796688,108770.0,108750.0,0.18394804]
[1760641108439,0.7996688,108770.0,108750.0,0.18394804]
[1760641109598,0.30388143,108770.0,108750.0,0.18394804]
[1760641109840,0.18389113,108760.0,108750.0,0.18394804]
[1760641110017,0.7996785,108760.0,108750.0,0.18394804]
[1760641110321,0.7996785,108760.0,108750.0,4e-05]
[1760641110521,0.7996785,108760.0,108750.0,0.18394804]
[1760641110731,0.61578737,108760.0,108750.0,0.18394804]
[1760641110925,0.7996785,108760.0,108750.0,0.18394804]
[1760641111141,0.7996785,108760.0,108750.0,0.18494804]
[1760641111338,0.7996785,108760.0,108750.0,0.18394804]
[1760641111584,0.7996785,108760.0,108750.0,4e-05]
[1760641112268,0.7996785,108760.0,108750.0,0.18394804]
[1760641113619,0.7996785,108760.0,108750.0,4e-05]
[1760641113884,0.7996785,108760.0,108750.0,0.18394804]
[1760641114459,0.30389113,108760.0,108750.0,0.18394804]
[1760641114727,0.7996785,108760.0,108750.0,0.18394804]
[1760641115128,0.7996785,108760.0,108750.0,4e-05]
[1760641115870,0.7996785,108760.0,108750.0,0.18394804]
[1760641117487,0.62136175,108760.0,108750.0,0.18394804]
[1760641120561,0.49770888,108760.0,108750.0,0.18394804]
[1760641121680,0.7396785,108760.0,108750.0,0.18394804]
[1760641122364,0.06,108760.0,108750.0,0.18394804]
[1760641122615,0.06,108760.0,108750.0,0.27363816]
[1760641122814,0.00049948,108780.0,108770.0,0.18387423]
[1760641123031,0.11049948,108780.0,108770.0,0.18387423]
[1760641129947,0.11049948,108780.0,108770.0,0.27356435]
[1760641130583,0.11049948,108780.0,108770.0,0.29238871]
[1760641130821,0.11049948,108780.0,108770.0,0.27356435]
[1760641131472,0.00501007,108800.0,108790.0,0.18384042]
[1760641131674,0.14515988,108800.0,108790.0,0.36685054]
[1760641132713,0.3289834,108800.0,108790.0,0.36685054]
[1760641132913,1.09482658,108800.0,108790.0,0.001]
[1760641133123,1.09482658,108800.0,108790.0,0.18484042]
[1760641133790,1.09482658,108800.0,108790.0,0.001]
[1760641134442,0.3289834,108800.0,108780.0,0.27717182]
[1760641134639,1.09482658,108800.0,108780.0,0.27354194]
[1760641134903,1.09482658,108800.0,108780.0,0.36686194]
[1760641135130,1.09482658,108800.0,108790.0,0.18384042]
[1760641135354,0.18384042,108790.0,108780.0,0.09332]
[1760641135569,1.0796836,108790.0,108770.0,0.18387423]
[1760641135769,0.18385732,108780.0,108770.0,0.27718793]
[1760641135992,0.18385732,108780.0,108770.0,0.18386793]
[1760641136202,0.30385732,108780.0,108770.0,0.18386793]
[1760641136606,1.0697005,108780.0,108770.0,0.18387423]
[1760641137576,0.12,108780.0,108770.0,0.18387423]
[1760641137855,0.30385732,108780.0,108770.0,0.18387423]
[1760641138060,0.30385732,108780.0,108770.0,0.18487423]
[1760641139150,0.30385732,108780.0,108770.0,0.001]
[1760641139353,1.0697005,108780.0,108770.0,0.001]
[1760641140385,0.12,108780.0,108770.0,0.18487423]
[1760641140611,0.30385732,108780.0,108770.0,0.001]
[1760641140974,0.30385732,108780.0,108770.0,0.18487423]
[1760641141538,0.12,108780.0,108770.0,0.18487423]
[1760641142380,0.12,108780.0,108770.0,0.18491423]
[1760641142784,0.12,108780.0,108770.0,0.36792435]
[1760641142960,0.00515988,108800.0,108790.0,0.18384042]
[1760641143163,0.3189834,108800.0,108790.0,0.18384042]
[1760641143523,0.13515988,108800.0,108790.0,0.18384042]
[1760641143977,0.3189834,108800.0,108790.0,0.18384042]
[1760641145195,0.13515988,108800.0,108790.0,0.18384042]
[1760641145598,0.13515988,108800.0,108790.0,0.27716042]
[1760641145809,0.13515988,108800.0,108790.0,0.36685054]
[1760641147560,0.13515988,108800.0,108790.0,0.36689054]
[1760641149581,0.00034981,108800.0,108790.0,1.13273372]
[1760641149797,0.00034981,108800.0,108790.0,1.47273372]
[1760641150247,0.00034981,108800.0,108790.0,1.47373372]
[1760641150453,0.00034981,108800.0,108790.0,0.70689054]
[1760641150588,0.00034981,108800.0,108790.0,1.47373372]
[1760641151007,0.00034981,108800.0,108790.0,1.47273372]
[1760641151272,0.00034981,108800.0,108790.0,1.47373372]
[1760641151889,0.00034981,108800.0,108790.0,0.70789054]
[1760641152986,0.00034981,108800.0,108790.0,0.72432978]
[1760641154291,0.00034981,108800.0,108790.0,1.49017296]
[1760641154667,0.01839673,108830.0,108820.0,0.18378974]
[1760641154870,0.32216958,108830.0,108820.0,0.18378974]
[1760641155052,0.304986,108830.0,108820.0,0.18378974]
[1760641156587,0.304986,108830.0,108810.0,0.27708663]
[1760641156791,1.06961603,108830.0,108810.0,0.36677675]
[1760641156951,0.00060663,108820.0,108810.0,0.36677675]
[1760641157149,0.00060663,108820.0,108810.0,0.18297012]
[1760641157150,0.31439637,108820.0,108810.0,0.18297012]
[1760641157362,0.31439637,108820.0,108810.0,0.36677675]
[1760641157958,0.13060663,108820.0,108810.0,0.36677675]
[1760641159338,0.13060663,108820.0,108810.0,0.36777675]
[1760641164387,0.89644981,108820.0,108810.0,0.18393012]
[1760641164610,0.13060663,108820.0,108810.0,0.36773675]
[1760641165692,0.13060663,108820.0,108810.0,0.36673675]
[1760641168453,0.13060663,108820.0,108810.0,0.36773675]
[1760641172618,0.00060663,108820.0,108810.0,0.36773675]
[1760641175053,0.00060663,108820.0,108810.0,1.13357993]
[1760641175829,0.00060663,108820.0,108810.0,0.36773675]
[1760641176242,0.00060663,108820.0,108810.0,0.36673675]
[1760641176458,0.00060663,108820.0,108810.0,0.36773675]
[1760641177420,0.00060663,108820.0,108810.0,1.13357993]
[1760641177938,0.00060663,108820.0,108810.0,1.47357993]
[1760641180675,0.00060663,108820.0,108810.0,0.70773675]
[1760641180874,0.00060663,108820.0,108810.0,1.47357993]
[1760641183290,1e-08,108820.0,108810.0,1.50976221]
[1760641185137,1e-08,108820.0,108810.0,1.52720221]
[1760641185538,1e-08,108820.0,108810.0,1.52920221]
[1760641186248,1e-08,108840.0,108830.0,0.18377285]
[1760641186454,1e-08,108840.0,108830.0,1.13250615]
[1760641186651,1e-08,108840.0,108830.0,0.36666297]
[1760641187616,1e-08,108840.0,108830.0,0.36766297]
[1760641189317,1e-08,108840.0,108830.0,0.27446297]
[1760641189513,1e-08,108840.0,108830.0,0.36766297]
[1760641192026,0.00121299,108840.0,108830.0,0.36766297]
[1760641192678,0.00121299,108840.0,108830.0,1.13350615]
[1760641193559,0.00121299,108840.0,108830.0,0.86202637]
[1760641197512,0.00121299,108840.0,108830.0,1.23776999]
[1760641199870,0.00121299,108840.0,108830.0,0.80271648]
[1760641200069,0.00121299,108840.0,108830.0,1.23776999]
[1760641200715,1e-08,108840.0,108830.0,1.70900578]
[1760641200922,0.0002,108860.0,108850.0,0.52373909]
[1760641200923,1e-08,108860.0,108850.0,0.52373909]
[1760641201078,9.174e-05,108860.0,108850.0,1.14164272]
[1760641201479,0.00130439,108860.0,108850.0,1.57669623]
[1760641201815,0.02340394,108890.0,108880.0,0.18368846]
[1760641201967,0.02340394,108890.0,108880.0,0.80159209]
[1760641201968,0.15390287,108890.0,108880.0,0.80159209]
[1760641202337,0.13050614,108890.0,108880.0,0.36653858]
[1760641202730,0.74923124,108890.0,108860.0,0.19287933]
[1760641203064,0.18370533,108870.0,108860.0,0.52474363]
[1760641203367,0.18372221,108860.0,108850.0,0.001]
[1760641203569,0.75877572,108860.0,108850.0,0.09416]
[1760641203849,0.75877572,108860.0,108850.0,0.18473909]
[1760641204096,0.75877572,108860.0,108850.0,0.18373909]
[1760641204278,0.34351695,108860.0,108840.0,0.27691597]
[1760641204491,0.6187926,108850.0,108820.0,0.62801743]
[1760641204693,0.18375942,108840.0,108830.0,0.27693285]
[1760641204900,0.18375942,108840.0,108820.0,0.27346456]
[1760641204901,0.74881293,108840.0,108820.0,0.27346456]
[1760641205113,0.74881293,108840.0,108820.0,0.27694021]
[1760641205365,0.61882636,108830.0,108820.0,0.18378974]
[1760641205554,0.68778081,108840.0,108820.0,0.18378974]
[1760641205753,0.46,108840.0,108820.0,0.18388147]
[1760641205925,0.18377285,108830.0,108820.0,9.173e-05]
[1760641206129,0.32377285,108830.0,108820.0,9.173e-05]
[1760641206583,0.83617061,108830.0,108820.0,9.173e-05]
[1760641206809,1.21235289,108830.0,108820.0,9.173e-05]
[1760641207164,1.21235289,108830.0,108820.0,0.00109173]
[1760641207331,1.21235289,108830.0,108820.0,9.173e-05]
[1760641207535,0.71751929,108830.0,108820.0,9.173e-05]
[1760641207735,1.23710822,108830.0,108820.0,9.173e-05]
[1760641207946,6.24537924,108830.0,108820.0,9.173e-05]
[1760641208145,0.5600058,108800.0,108790.0,4e-05]
[1760641208346,1.1986705,108800.0,108790.0,0.00018973]
[1760641208738,1.22632018,108800.0,108790.0,0.00018973]
[1760641208945,1.72115378,108800.0,108790.0,0.00018973]
[1760641209192,1.22632018,108800.0,108790.0,0.00018973]
[1760641210567,6.72115378,108800.0,108790.0,0.00018973]
[1760641211239,6.71615378,108800.0,108790.0,0.00018973]
[1760641211451,5.72648658,108800.0,108790.0,0.00018973]
[1760641211667,6.22132018,108800.0,108790.0,0.00018973]
[1760641211872,1.22132018,108800.0,108790.0,0.00018973]
[1760641212087,0.72648658,108800.0,108790.0,0.00018973]
[1760641212527,0.3603043,108800.0,108790.0,0.00018973]
[1760641212731,0.8551379,108800.0,108790.0,0.00018973]
[1760641213135,1.1951379,108800.0,108790.0,0.00018973]
[1760641213546,0.7003043,108800.0,108790.0,0.00018973]
[1760641213757,1.23132018,108800.0,108790.0,0.00018973]
[1760641214381,0.73648658,108800.0,108790.0,0.00018973]
[1760641214592,1.23132018,108800.0,108790.0,0.00018973]
[1760641215531,6.74320577,108800.0,108790.0,0.00018973]
[1760641216078,6.56371532,108800.0,108790.0,0.00018973]
[1760641216326,6.57017049,108800.0,108790.0,0.00018973]
[1760641216930,6.5948958,108800.0,108790.0,0.00018973]
[1760641217473,5.6052286,108800.0,108790.0,0.00018973]
[1760641217685,6.61450574,108800.0,108790.0,0.00018973]
[1760641218368,6.62984479,108800.0,108790.0,0.00018973]
[1760641219069,0.18385732,108780.0,108770.0,4e-05]
[1760641219293,6.1919085,108780.0,108770.0,0.00018981]
[1760641219505,0.71670153,108780.0,108770.0,0.00018981]
[1760641219710,1.21153513,108780.0,108770.0,0.00018981]
[1760641219921,0.68649477,108780.0,108770.0,0.00018981]
[1760641220125,0.68649477,108780.0,108770.0,0.18406404]
[1760641220328,0.65031249,108780.0,108770.0,0.18406404]
[1760641220575,0.46645517,108780.0,108770.0,0.18406404]
[1760641220772,0.12,108780.0,108770.0,0.18406404]
[1760641221007,0.12,108780.0,108770.0,0.67889764]
[1760641221214,0.12,108780.0,108770.0,0.86178776]
[1760641221635,0.04604062,108810.0,108800.0,0.18382352]
[1760641221855,0.13839673,108810.0,108800.0,0.18382352]
[1760641222055,0.12,108810.0,108800.0,0.18382352]
[1760641222262,0.30380663,108810.0,108800.0,0.18382352]
[1760641222809,0.30380663,108810.0,108790.0,0.2770398]
[1760641223026,0.30380663,108810.0,108800.0,0.18382352]
[1760641223469,0.12,108810.0,108800.0,0.18382352]
[1760641223656,0.12,108810.0,108800.0,0.27351364]
[1760641224489,0.12,108810.0,108800.0,0.76834724]
[1760641224639,0.12,108810.0,108800.0,0.27351364]
[1760641224845,0.12,108810.0,108800.0,0.76834724]
[1760641225210,0.23316306,108840.0,108830.0,0.18377285]
[1760641225211,0.55729914,108840.0,108830.0,0.18377285]
[1760641225425,0.32729914,108840.0,108830.0,0.18377285]
[1760641225646,0.45,108840.0,108830.0,0.18377285]
[1760641225835,0.63375597,108840.0,108820.0,0.18377487]
[1760641225980,0.63375597,108840.0,108830.0,0.18377285]
[1760641226178,0.63375597,108840.0,108820.0,0.27346499]
[1760641226531,0.63390556,108840.0,108820.0,0.27346499]
[1760641226734,0.18377285,108830.0,108810.0,0.18380421]
[1760641226966,0.32377285,108830.0,108820.0,0.18378974]
[1760641227174,0.32377285,108830.0,108810.0,0.27696421]
[1760641227581,0.32377285,108830.0,108820.0,0.18378974]
[1760641227800,0.14,108830.0,108820.0,0.18378974]
[1760641228213,0.14,108830.0,108820.0,0.27347986]
[1760641229582,0.14,108830.0,108820.0,0.76831346]
[1760641229778,0.14,108830.0,108820.0,0.27347986]
[1760641230828,0.14,108830.0,108820.0,0.76831346]
[1760641230985,0.15520872,108830.0,108820.0,0.76831346]
[1760641231186,0.14,108830.0,108820.0,0.76831346]
[1760641231384,0.00014959,108840.0,108830.0,0.18377285]
[1760641231592,0.12014959,108840.0,108830.0,0.86145657]
[1760641231793,0.12014959,108840.0,108830.0,0.36662297]
[1760641234882,0.30390556,108840.0,108830.0,0.36662297]
[1760641235080,0.32356404,108840.0,108830.0,0.09316]
[1760641235292,0.18377285,108830.0,108820.0,0.09316]
[1760641235466,0.29377285,108830.0,108820.0,0.18378974]
[1760641235670,0.31343133,108830.0,108810.0,0.19299454]
[1760641235903,0.33053006,108830.0,108810.0,0.18380663]
[1760641236104,0.33053006,108830.0,108820.0,0.18378974]
[1760641236512,0.18378974,108820.0,108810.0,0.27696663]
[1760641236721,0.20343133,108830.0,108820.0,0.18378974]
[1760641236928,0.34052989,108830.0,108810.0,0.27696663]
[1760641237102,0.34052989,108830.0,108820.0,0.18378974]
[1760641237311,0.18378974,108820.0,108810.0,0.27696663]
[1760641237511,0.13,108820.0,108810.0,0.27696663]
[1760641237728,0.13,108820.0,108800.0,0.18381643]
[1760641237729,0.18380663,108810.0,108800.0,0.18381643]
[1760641237937,0.18380663,108810.0,108780.0,0.19302127]
[1760641237938,0.30299696,108810.0,108780.0,0.19302127]
[1760641238140,0.33056784,108810.0,108800.0,0.18382352]
[1760641238350,0.33057057,108810.0,108800.0,0.18382352]
[1760641238546,0.18382352,108800.0,108790.0,0.18285012]
[1760641238769,0.32382352,108800.0,108780.0,0.19302127]
[1760641238991,0.343482,108800.0,108780.0,0.37587139]
[1760641239203,0.343482,108800.0,108790.0,0.18384042]
[1760641239402,0.17676385,108800.0,108790.0,0.18384042]
[1760641239806,0.15965848,108800.0,108790.0,0.76836414]
[1760641240007,0.01965848,108810.0,108800.0,0.18382352]
[1760641240211,0.04,108810.0,108800.0,0.36667364]
[1760641240416,0.01965848,108820.0,108810.0,0.18380663]
[1760641240626,0.12965848,108820.0,108810.0,0.18380663]
[1760641242294,0.12965848,108820.0,108810.0,0.76833035]
[1760641242500,0.11,108820.0,108810.0,0.76833035]
[1760641242710,0.11,108820.0,108810.0,0.27349675]
[1760641242867,0.11,108820.0,108810.0,0.76833035]
[1760641243466,0.11,108820.0,108810.0,0.27349675]
[1760641244292,0.12971267,108820.0,108810.0,0.09416]
[1760641244502,0.12971267,108820.0,108810.0,0.18480663]
[1760641244714,0.31350241,108820.0,108810.0,0.001]
[1760641245040,0.35519128,108820.0,108810.0,0.001]
[1760641245508,0.35454805,108820.0,108810.0,0.001]
[1760641245654,0.1838298,108800.0,108780.0,0.19302127]
[1760641245860,0.34354247,108800.0,108790.0,0.09316]
[1760641246063,0.15971267,108800.0,108790.0,0.18384042]
[1760641246487,0.36066435,108800.0,108790.0,0.18384042]
[1760641246654,0.34353619,108800.0,108790.0,0.18384042]
[1760641246852,0.36066486,108800.0,108790.0,0.18384042]
[1760641247051,0.18384042,108790.0,108780.0,0.27369725]
[1760641247281,0.18384042,108790.0,108780.0,0.00014981]
[1760641247282,0.33355309,108790.0,108780.0,0.00014981]
[1760641247510,0.35069179,108790.0,108780.0,0.00014981]
[1760641247713,0.40823197,108790.0,108780.0,0.00014981]
[1760641247934,0.40823197,108790.0,108780.0,0.18400713]
[1760641248171,0.37526489,108790.0,108780.0,0.18400713]
[1760641248628,0.19142447,108790.0,108780.0,0.18400713]
[1760641249045,0.37526489,108790.0,108780.0,0.18400713]
[1760641249341,0.38365887,108790.0,108780.0,0.00014981]
[1760641249558,0.92798706,108790.0,108780.0,0.00014981]
[1760641249779,0.43315346,108790.0,108780.0,0.00014981]
[1760641250624,0.43315346,108790.0,108780.0,0.18400713]
[1760641250876,0.19981845,108790.0,108780.0,0.18400713]
[1760641251133,0.40838098,108790.0,108780.0,0.18400713]
[1760641251337,0.40838098,108790.0,108780.0,0.00014981]
[1760641251604,0.38365887,108790.0,108780.0,0.18400713]
[1760641251988,0.40837876,108790.0,108780.0,0.18400713]
[1760641252193,0.38365887,108790.0,108780.0,0.00014981]
[1760641252555,0.43315346,108790.0,108780.0,0.00014981]
[1760641252759,0.43315346,108790.0,108780.0,0.18400713]
[1760641253130,0.38365887,108790.0,108780.0,0.18400713]
[1760641253491,0.40836572,108790.0,108780.0,0.18400713]
[1760641253691,0.40836572,108790.0,108780.0,0.00014981]
[1760641253891,0.43315346,108790.0,108780.0,0.00014981]
[1760641254249,0.38365887,108790.0,108780.0,0.00014981]
[1760641255533,0.72365887,108790.0,108780.0,0.00014981]
[1760641255887,0.77315346,108790.0,108780.0,0.00014981]
[1760641256304,1.53941467,108790.0,108780.0,0.00014981]
[1760641256508,1.56706552,108790.0,108780.0,0.00014981]
[1760641257036,1.51757093,108790.0,108780.0,0.00014981]
[1760641257640,6.5175726,108790.0,108780.0,0.00014981]
[1760641257846,6.57028239,108790.0,108780.0,0.00014981]
[1760641258054,6.5207878,108790.0,108780.0,0.00014981]
[1760641258264,6.57015773,108790.0,108780.0,0.00014981]
[1760641258500,5.83679794,108790.0,108780.0,0.00014981]
[1760641258704,6.60305915,108790.0,108780.0,0.00014981]
[1760641259310,6.57015773,108790.0,108780.0,0.00014981]
[1760641259755,6.53397545,108790.0,108780.0,0.00014981]
[1760641259960,6.57015017,108790.0,108780.0,0.00014981]
[1760641261301,6.54249932,108790.0,108780.0,0.00014981]
[1760641261508,5.77623811,108790.0,108780.0,0.00014981]
[1760641262077,6.57539547,108790.0,108780.0,0.00014981]
[1760641262517,6.54249932,108790.0,108780.0,0.00014981]
[1760641263390,6.575395,108790.0,108780.0,0.00014981]
[1760641264255,6.54249932,108790.0,108780.0,0.00014981]
[1760641264700,6.54249932,108790.0,108770.0,4e-05]
[1760641264945,6.40858695,108780.0,108770.0,4e-05]
[1760641265161,6.54251622,108780.0,108770.0,4e-05]
[1760641265584,5.77625501,108780.0,108770.0,4e-05]
[1760641265801,6.54251622,108780.0,108770.0,4e-05]
[1760641266293,6.54351622,108780.0,108770.0,4e-05]
[1760641267189,6.54832442,108780.0,108770.0,4e-05]
[1760641267397,6.51337367,108780.0,108770.0,4e-05]
[1760641267588,6.57933382,108780.0,108770.0,4e-05]
[1760641267811,5.98631772,108770.0,108760.0,0.00645517]
[1760641268014,6.2025398,108770.0,108760.0,0.00645517]
[1760641268245,6.23545764,108770.0,108760.0,0.00645517]
[1760641268452,1.21832483,108770.0,108760.0,0.00645517]
[1760641268783,1.16071235,108770.0,108760.0,0.00645517]
[1760641268995,1.17785604,108770.0,108760.0,0.00645517]
[1760641269402,1.21077388,108770.0,108760.0,0.00645517]
[1760641269601,6.21077388,108770.0,108760.0,0.00645517]
[1760641269815,6.19363019,108770.0,108760.0,0.00645517]
[1760641270389,6.16894823,108770.0,108760.0,0.00645517]
[1760641270626,6.18609366,108770.0,108760.0,0.00645517]
[1760641270839,6.21077277,108770.0,108760.0,0.00645517]
[1760641271014,6.18609366,108770.0,108760.0,0.00645517]
[1760641271211,6.16894823,108770.0,108760.0,0.00645517]
[1760641271422,6.19363187,108770.0,108760.0,0.00645517]
[1760641271682,0.35827054,108770.0,108760.0,0.00645517]
[1760641272050,1.14167712,108770.0,108760.0,0.00645517]
[1760641272456,6.21077724,108770.0,108760.0,0.00645517]
[1760641272637,6.30045932,108770.0,108760.0,0.00645517]
[1760641272837,6.27577568,108770.0,108760.0,0.00645517]
[1760641273075,6.1860936,108770.0,108760.0,0.00645517]
[1760641274542,6.2354702,108770.0,108760.0,0.00645517]
[1760641275261,6.20255236,108770.0,108760.0,0.00645517]
[1760641275690,5.43629115,108770.0,108760.0,0.00645517]
[1760641275826,6.20255236,108770.0,108760.0,0.00645517]
[1760641276452,5.43629115,108770.0,108760.0,0.00645517]
[1760641277050,6.20255236,108770.0,108760.0,0.00645517]
[1760641278128,6.15317576,108770.0,108760.0,0.00645517]
[1760641278775,5.52389113,108760.0,108750.0,4e-05]
[1760641279069,6.43701038,108760.0,108750.0,4e-05]
[1760641279475,6.50308384,108760.0,108750.0,4e-05]
[1760641279678,0.6707999,108760.0,108750.0,4e-05]
[1760641279884,1.43706111,108760.0,108750.0,4e-05]
[1760641280127,0.72031941,108760.0,108750.0,4e-05]
[1760641280557,0.19642828,108760.0,108750.0,0.18394804]
[1760641280743,0.17992361,108760.0,108750.0,0.18394804]
[1760641280987,0.35555899,108760.0,108750.0,0.18394804]
[1760641281223,0.17166786,108760.0,108750.0,0.18394804]
[1760641281723,1e-08,108760.0,108750.0,1.37989937]
[1760641281937,0.08268386,108790.0,108780.0,0.18385732]
[1760641281938,0.00014951,108790.0,108780.0,0.18385732]
[1760641282153,0.14014951,108790.0,108780.0,0.18385732]
[1760641282366,0.32398993,108790.0,108770.0,0.0932]
[1760641282582,0.18385732,108780.0,108760.0,0.27709099]
[1760641282792,0.18387423,108770.0,108750.0,0.37603356]
[1760641282999,0.32863332,108770.0,108750.0,0.28283356]
[1760641283212,0.14475909,108770.0,108760.0,0.18389113]
[1760641283441,0.12,108770.0,108760.0,0.18389113]
[1760641283895,0.05792344,108790.0,108780.0,0.18385732]
[1760641284108,0.1449086,108790.0,108780.0,0.18385732]
[1760641284327,0.12014951,108790.0,108780.0,0.18385732]
[1760641284792,0.12014951,108790.0,108780.0,0.27354744]
[1760641285238,0.12014951,108790.0,108780.0,0.18385732]
[1760641285464,0.12014951,108790.0,108780.0,0.27701732]
[1760641285916,0.23082162,108810.0,108800.0,0.18382352]
[1760641285917,1e-08,108810.0,108800.0,0.18382352]
[1760641286144,0.00645222,108860.0,108830.0,0.18375814]
[1760641286367,0.04660198,108860.0,108850.0,0.9500003]